bitfinex/quotes_BTCUSD_20240731
["timestamp","ask_amount","ask_price","bid_price","bid_amount"]
[1722464472618,1.73465592,64822.0,64821.0,0.00038691]
[1722464472822,1.64227907,64822.0,64821.0,0.00038691]
[1722464473236,1.65527907,64822.0,64821.0,0.00038691]
[1722464473582,1.7476535,64822.0,64821.0,0.00038691]
[1722464473782,1.74715685,64822.0,64821.0,0.00038691]
[1722464474197,1.76115685,64822.0,64821.0,0.00038691]
[1722464474405,1.75653467,64822.0,64821.0,0.00038691]
[1722464474749,1.75632182,64822.0,64821.0,0.00038691]
[1722464474973,1.74512692,64822.0,64821.0,0.00038691]
[1722464475180,1.70904127,64822.0,64821.0,0.00038691]
[1722464475504,1.72104127,64822.0,64821.0,0.00038691]
[1722464475709,1.62477847,64822.0,64821.0,0.00038691]
[1722464475927,1.62677847,64822.0,64821.0,0.00038691]
[1722464476130,1.63677847,64822.0,64821.0,0.00038691]
[1722464476774,1.63677847,64822.0,64821.0,0.08038691]
[1722464476775,0.46721511,64822.0,64821.0,0.08038691]
[1722464476927,0.46721511,64822.0,64821.0,0.60779791]
[1722464476928,0.33475446,64822.0,64821.0,0.60779791]
[1722464477125,0.32075446,64822.0,64821.0,0.60779791]
[1722464477353,0.31075446,64822.0,64821.0,0.60779791]
[1722464477561,0.32375446,64822.0,64821.0,0.60862791]
[1722464477818,0.32375446,64822.0,64821.0,1.22570991]
[1722464478143,0.33675446,64822.0,64821.0,1.35387314]
[1722464478342,0.32088,64822.0,64821.0,1.36387314]
[1722464478791,0.15423,64838.0,64837.0,0.00038691]
[1722464479120,0.15726325,64838.0,64837.0,0.09553555]
[1722464479328,0.31149325,64838.0,64837.0,0.24976755]
[1722464479441,0.31149325,64838.0,64837.0,0.55823255]
[1722464480110,0.30846,64838.0,64837.0,0.55823255]
[1722464480267,0.31149139,64838.0,64837.0,0.55823255]
[1722464480465,0.31149139,64838.0,64837.0,1.17516255]
[1722464480869,0.31449139,64838.0,64837.0,1.17516255]
[1722464481100,0.31746,64838.0,64837.0,1.17616255]
[1722464481482,0.30846,64838.0,64837.0,1.17516255]
[1722464481654,0.30846,64838.0,64837.0,1.17916255]
[1722464481864,0.30846,64838.0,64837.0,1.18016255]
[1722464482059,0.33264669,64838.0,64837.0,1.18016255]
[1722464482411,0.33264669,64838.0,64837.0,1.60062755]
[1722464482581,0.33264669,64838.0,64837.0,1.79317927]
[1722464483083,0.27353393,64838.0,64837.0,1.79317927]
[1722464483424,0.27353393,64838.0,64837.0,1.92129262]
[1722464483651,0.27353393,64838.0,64837.0,1.91729262]
[1722464483886,0.27353393,64838.0,64837.0,1.93029262]
[1722464484109,0.00091301,64840.0,64839.0,1.42043891]
[1722464484311,0.00091301,64840.0,64839.0,1.99403927]
[1722464484491,0.30936301,64840.0,64839.0,1.97203927]
[1722464484820,0.30936301,64840.0,64839.0,1.99403927]
[1722464484948,0.30936301,64840.0,64839.0,1.97203927]
[1722464485361,0.31036301,64840.0,64839.0,1.48703155]
[1722464485919,0.30936301,64840.0,64839.0,1.48103155]
[1722464486434,0.30936301,64840.0,64839.0,1.17257555]
[1722464486643,0.3123427,64840.0,64839.0,1.17257555]
[1722464487058,0.3133427,64840.0,64839.0,1.17857555]
[1722464487262,0.3123427,64840.0,64839.0,1.48103155]
[1722464487540,0.3133427,64840.0,64839.0,1.49703155]
[1722464487736,0.3143427,64840.0,64839.0,1.18857555]
[1722464487939,0.3133427,64840.0,64839.0,1.17857555]
[1722464488361,0.3143427,64840.0,64839.0,1.18857555]
[1722464488772,0.3143427,64840.0,64839.0,1.49703155]
[1722464489201,0.31136301,64840.0,64839.0,1.18857555]
[1722464489422,0.31136301,64840.0,64839.0,1.17322691]
[1722464490112,0.3355469,64840.0,64839.0,0.45631491]
[1722464490289,0.3355469,64840.0,64839.0,0.08328691]
[1722464490290,0.33853547,64840.0,64839.0,0.08328691]
[1722464490472,0.46857658,64840.0,64839.0,0.01638691]
[1722464491085,0.46757658,64840.0,64839.0,0.00638691]
[1722464491477,0.77602758,64840.0,64839.0,0.01038691]
[1722464491679,1.08747858,64840.0,64839.0,0.01038691]
[1722464491873,1.08747858,64840.0,64839.0,0.00038691]
[1722464491874,1.08647858,64840.0,64839.0,0.00038691]
[1722464492169,1.08347858,64840.0,64839.0,0.00038691]
[1722464492369,1.39492958,64840.0,64839.0,0.00138691]
[1722464492721,1.5444813,64840.0,64839.0,0.00138691]
[1722464493503,1.5414813,64840.0,64839.0,0.00038691]
[1722464493944,1.58167048,64840.0,64839.0,0.00138691]
[1722464494150,1.57167048,64840.0,64839.0,0.00138691]
[1722464494763,1.58167048,64840.0,64839.0,0.00138691]
[1722464494943,1.66157048,64840.0,64839.0,0.00138691]
[1722464495146,2.03272148,64840.0,64839.0,0.001]
[1722464495356,2.0085323,64840.0,64839.0,0.001]
[1722464498769,2.62679784,64840.0,64839.0,0.001]
[1722464498982,2.86909784,64840.0,64839.0,0.001]
[1722464499227,2.67329784,64840.0,64839.0,0.001]
[1722464499339,2.69329784,64840.0,64839.0,0.001]
[1722464499797,0.77133,64823.0,64822.0,0.00038691]
[1722464500031,1.22941372,64823.0,64822.0,0.01573555]
[1722464500428,1.23219576,64823.0,64822.0,0.01573555]
[1722464500806,0.92366376,64823.0,64822.0,0.01573555]
[1722464500967,0.93366376,64823.0,64822.0,0.01573555]
[1722464501172,1.25611376,64823.0,64822.0,0.01573555]
[1722464501392,1.56464576,64823.0,64822.0,0.01573555]
[1722464502685,1.58884025,64823.0,64822.0,0.01573555]
[1722464502900,1.56464576,64823.0,64822.0,0.01573555]
[1722464505086,1.56464576,64823.0,64821.0,0.00083]
[1722464505087,0.771342,64822.0,64821.0,0.00083]
[1722464505273,1.32934372,64822.0,64821.0,0.00083]
[1722464505506,1.64064308,64822.0,64821.0,0.00083]
[1722464506397,1.66484067,64822.0,64821.0,0.00083]
[1722464506611,1.97337767,64822.0,64821.0,0.00083]
[1722464506820,1.67384067,64822.0,64821.0,0.00083]
[1722464507232,1.68684067,64822.0,64821.0,0.00083]
[1722464507432,1.66264308,64822.0,64821.0,0.00083]
[1722464508102,1.97118008,64822.0,64821.0,0.00083]
[1722464508311,2.03528008,64822.0,64821.0,0.00083]
[1722464508480,1.72674308,64822.0,64821.0,0.00083]
[1722464510803,1.75094095,64822.0,64821.0,0.00083]
[1722464511117,1.72674308,64822.0,64821.0,0.00083]
[1722464511675,2.03528008,64822.0,64821.0,0.00083]
[1722464511871,1.72674308,64822.0,64821.0,0.00083]
[1722464512595,1.73599915,64822.0,64821.0,0.00083]
[1722464513166,1.73599915,64822.0,64821.0,0.00121691]
[1722464513365,1.35410608,64822.0,64821.0,0.00121691]
[1722464514248,1.37830385,64822.0,64821.0,0.00121691]
[1722464514652,1.35410608,64822.0,64821.0,0.00121691]
[1722464515774,1.25410608,64822.0,64821.0,0.00121691]
[1722464516946,0.33321236,64822.0,64821.0,0.00121691]
[1722464517571,0.48748036,64822.0,64821.0,0.00121691]
[1722464517785,0.33321236,64822.0,64821.0,0.00121691]
[1722464518180,0.33321236,64822.0,64821.0,0.00224765]
[1722464519361,0.35740847,64822.0,64821.0,0.46505865]
[1722464519566,0.33321236,64822.0,64821.0,1.01902063]
[1722464519777,0.00091301,64838.0,64837.0,0.15461891]
[1722464519990,0.00091301,64838.0,64837.0,0.08263555]
[1722464520189,0.00091301,64838.0,64837.0,0.01573555]
[1722464520392,0.30937301,64838.0,64837.0,0.47843255]
[1722464520615,0.30937301,64838.0,64837.0,1.09536255]
[1722464520817,0.30937301,64838.0,64837.0,0.78689755]
[1722464521135,0.30937301,64838.0,64837.0,0.16996755]
[1722464521359,0.31337301,64838.0,64837.0,0.78689755]
[1722464522322,0.33756086,64838.0,64837.0,0.78689755]
[1722464522514,0.34756086,64838.0,64837.0,0.78789755]
[1722464522720,0.34356086,64838.0,64837.0,0.78789755]
[1722464522857,0.30937301,64838.0,64837.0,0.78689755]
[1722464523071,0.30937301,64838.0,64837.0,0.01573555]
[1722464523278,0.30937301,64838.0,64837.0,0.01873555]
[1722464523885,0.46360301,64838.0,64837.0,0.01873555]
[1722464524694,1.60093773,64838.0,64837.0,0.01873555]
[1722464524893,1.29247673,64838.0,64837.0,0.01873555]
[1722464525094,1.29947673,64838.0,64837.0,0.00138691]
[1722464525315,1.29947673,64838.0,64837.0,0.00238691]
[1722464525598,1.60793773,64838.0,64837.0,0.00238691]
[1722464525795,1.60793773,64838.0,64837.0,0.00138691]
[1722464526018,1.60793773,64838.0,64837.0,0.001]
[1722464526218,1.6371288,64838.0,64837.0,0.001]
[1722464526605,0.771175,64836.0,64835.0,0.00038691]
[1722464526831,1.22919672,64836.0,64835.0,0.01573555]
[1722464527036,0.31837301,64838.0,64837.0,0.00038691]
[1722464527269,0.92861573,64838.0,64837.0,0.00038691]
[1722464527445,0.31637301,64838.0,64837.0,0.00138691]
[1722464527615,0.47260301,64838.0,64837.0,0.00138691]
[1722464527842,0.47260301,64838.0,64837.0,0.00038691]
[1722464527843,0.31837301,64838.0,64837.0,0.00038691]
[1722464528014,0.47260301,64838.0,64837.0,0.00038691]
[1722464528438,0.47060301,64838.0,64837.0,0.00038691]
[1722464528959,0.46360301,64838.0,64837.0,0.00038691]
[1722464529099,0.46960301,64838.0,64837.0,0.00138691]
[1722464529745,0.47660301,64838.0,64837.0,0.00138691]
[1722464529906,0.50079311,64838.0,64837.0,0.00238691]
[1722464530252,0.33237301,64838.0,64837.0,0.00238691]
[1722464530404,0.30937301,64838.0,64837.0,0.00038691]
[1722464530839,0.46860301,64838.0,64837.0,0.00038691]
[1722464531041,0.77906401,64838.0,64837.0,0.00038691]
[1722464531466,0.77406401,64838.0,64837.0,0.00038691]
[1722464531674,0.46560301,64838.0,64837.0,0.00038691]
[1722464532079,0.77206401,64838.0,64837.0,0.00038691]
[1722464532234,1.08052501,64838.0,64837.0,0.00038691]
[1722464532646,0.77206401,64838.0,64837.0,0.00038691]
[1722464532866,0.77606401,64838.0,64837.0,0.00038691]
[1722464533098,0.79625412,64838.0,64837.0,0.00038691]
[1722464533508,0.49479312,64838.0,64837.0,0.00038691]
[1722464533711,0.46560301,64838.0,64837.0,0.00038691]
[1722464533913,0.77406401,64838.0,64837.0,0.00138691]
[1722464534094,0.47060301,64838.0,64837.0,0.00138691]
[1722464534296,0.77906401,64838.0,64837.0,0.00038691]
[1722464534476,0.78406401,64838.0,64837.0,0.00038691]
[1722464535245,0.32137301,64838.0,64837.0,0.00038691]
[1722464535449,0.47560301,64838.0,64837.0,0.00038691]
[1722464535650,0.78406401,64838.0,64837.0,0.00038691]
[1722464535852,1.24207673,64838.0,64837.0,0.00038691]
[1722464535989,1.24207673,64838.0,64837.0,0.01]
[1722464536192,1.24207673,64838.0,64837.0,0.01038691]
[1722464536396,1.53853773,64838.0,64837.0,0.01038691]
[1722464536602,1.37467673,64838.0,64837.0,0.01038691]
[1722464536889,1.70932873,64838.0,64837.0,0.01038691]
[1722464537215,1.71432873,64838.0,64837.0,0.01038691]
[1722464537414,1.70332873,64838.0,64837.0,0.01038691]
[1722464537615,1.70532873,64838.0,64837.0,0.01038691]
[1722464537792,1.71832873,64838.0,64837.0,0.01138691]
[1722464538030,1.40986773,64838.0,64837.0,0.01138691]
[1722464538661,1.55353773,64838.0,64837.0,0.01138691]
[1722464538858,1.24507673,64838.0,64837.0,0.01138691]
[1722464539063,1.61187435,64838.0,64837.0,0.01138691]
[1722464539263,2.06603535,64838.0,64837.0,0.011]
[1722464539465,2.28124656,64838.0,64837.0,0.011]
[1722464539640,2.46149635,64838.0,64837.0,0.01]
[1722464539842,2.15303535,64838.0,64837.0,0.01]
[1722464540078,2.16603535,64838.0,64837.0,0.011]
[1722464540652,2.13984562,64838.0,64837.0,0.012]
[1722464540912,2.48573724,64838.0,64837.0,0.012]
[1722464541118,2.17727624,64838.0,64837.0,0.012]
[1722464541241,2.16447896,64838.0,64837.0,0.011]
[1722464541847,2.17847896,64838.0,64837.0,0.012]
[1722464542349,2.28367962,64838.0,64837.0,0.011]
[1722464542557,2.16847896,64838.0,64837.0,0.011]
[1722464542759,2.18247896,64838.0,64837.0,0.012]
[1722464543170,2.16847896,64838.0,64837.0,0.011]
[1722464543376,2.16847896,64838.0,64837.0,0.012]
[1722464543585,2.16847896,64838.0,64837.0,0.011]
[1722464543790,2.18245758,64838.0,64837.0,0.012]
[1722464545536,2.20665173,64838.0,64837.0,0.012]
[1722464547143,2.20648998,64838.0,64837.0,0.012]
[1722464550315,2.16903977,64838.0,64837.0,0.012]
[1722464550553,2.20590123,64838.0,64837.0,0.012]
[1722464550942,2.20590035,64838.0,64837.0,0.012]
[1722464552321,2.1817062,64838.0,64837.0,0.012]
[1722464553368,2.14484562,64838.0,64837.0,0.012]
[1722464553594,2.71051007,64838.0,64837.0,0.012]
[1722464553806,2.57235729,64838.0,64837.0,0.012]
[1722464554429,2.59235729,64838.0,64837.0,0.012]
[1722464555493,2.61655271,64838.0,64837.0,0.012]
[1722464555919,2.59235729,64838.0,64837.0,0.012]
[1722464556352,2.57235729,64838.0,64837.0,0.012]
[1722464556555,2.59235729,64838.0,64837.0,0.012]
[1722464556733,2.59205387,64838.0,64837.0,0.012]
[1722464559051,2.59624924,64838.0,64837.0,0.012]
[1722464559646,2.57205387,64838.0,64837.0,0.012]
[1722464559906,2.26359287,64838.0,64837.0,0.012]
[1722464560123,2.26378469,64838.0,64837.0,0.012]
[1722464560502,2.46291971,64838.0,64837.0,0.012]
[1722464560706,2.5722138,64838.0,64837.0,0.012]
[1722464560900,2.5922138,64838.0,64837.0,0.012]
[1722464561114,2.2637528,64838.0,64837.0,0.012]
[1722464561491,2.25413971,64838.0,64837.0,0.012]
[1722464561693,2.39236637,64838.0,64837.0,0.012]
[1722464561900,2.25413971,64838.0,64837.0,0.012]
[1722464562099,2.18158213,64838.0,64837.0,0.012]
[1722464562562,2.25426837,64838.0,64837.0,0.012]
[1722464563079,2.27846228,64838.0,64837.0,0.012]
[1722464563268,2.16903953,64838.0,64837.0,0.012]
[1722464563488,2.25401248,64838.0,64837.0,0.012]
[1722464566793,2.27820639,64838.0,64837.0,0.012]
[1722464569945,2.58666739,64838.0,64837.0,0.012]
[1722464570284,2.27820639,64838.0,64837.0,0.012]
[1722464570630,2.25401248,64838.0,64837.0,0.012]
[1722464572895,2.2541426,64838.0,64837.0,0.012]
[1722464573887,2.27833741,64838.0,64837.0,0.012]
[1722464574304,2.2541426,64838.0,64837.0,0.012]
[1722464577677,2.27833678,64838.0,64837.0,0.012]
[1722464577893,2.2541426,64838.0,64837.0,0.012]
[1722464579113,2.1710426,64838.0,64837.0,0.012]
[1722464579330,0.51107162,64838.0,64837.0,0.01238691]
[1722464579524,0.49174279,64838.0,64837.0,0.24138303]
[1722464579734,0.46865425,64838.0,64837.0,0.01238691]
[1722464579907,0.33737301,64838.0,64837.0,0.01238691]
[1722464580106,0.33737301,64838.0,64837.0,0.16661891]
[1722464580349,0.32337301,64838.0,64837.0,0.01138691]
[1722464580732,0.32337301,64838.0,64837.0,0.01038691]
[1722464580733,0.46360301,64838.0,64837.0,0.01038691]
[1722464580932,0.79820622,64838.0,64837.0,0.01038691]
[1722464581202,0.81220622,64838.0,64837.0,0.01138691]
[1722464581375,0.34751522,64838.0,64837.0,0.01138691]
[1722464581549,0.50174522,64838.0,64837.0,0.01138691]
[1722464581963,0.47760301,64838.0,64837.0,0.01138691]
[1722464582409,0.47760301,64838.0,64837.0,0.01038691]
[1722464582410,0.46360301,64838.0,64837.0,0.01038691]
[1722464582749,0.77206401,64838.0,64837.0,0.01138691]
[1722464582955,0.30937301,64838.0,64837.0,0.16561891]
[1722464583357,0.31137301,64838.0,64837.0,0.01038691]
[1722464583566,0.30937301,64838.0,64837.0,0.01038691]
[1722464583788,0.30937301,64838.0,64837.0,0.01238691]
[1722464584118,0.31337301,64838.0,64837.0,0.01238691]
[1722464584250,0.31337301,64838.0,64837.0,0.16461891]
[1722464584458,0.31337301,64838.0,64837.0,0.47408391]
[1722464584883,0.31337301,64838.0,64837.0,0.54098391]
[1722464585509,0.31337301,64838.0,64837.0,0.85344891]
[1722464585708,0.31337301,64838.0,64837.0,1.16191391]
[1722464586147,0.31337301,64838.0,64837.0,1.17191391]
[1722464586570,0.31337301,64838.0,64837.0,1.16191391]
[1722464586571,0.33756018,64838.0,64837.0,1.16191391]
[1722464588383,0.33756018,64838.0,64837.0,1.34057398]
[1722464588616,0.33756018,64838.0,64837.0,1.90283898]
[1722464588821,0.14269971,64838.0,64837.0,1.78403898]
[1722464589393,0.14269971,64838.0,64837.0,2.09250398]
[1722464589600,0.00033378,64838.0,64837.0,2.08850398]
[1722464589831,0.00033378,64838.0,64837.0,2.08750398]
[1722464590033,0.001,64838.0,64837.0,2.09950398]
[1722464590239,0.002,64838.0,64837.0,2.10850398]
[1722464591061,0.00091301,64840.0,64839.0,1.82889491]
[1722464591277,0.00091301,64840.0,64839.0,2.01179063]
[1722464591453,0.00091301,64840.0,64839.0,2.1398944]
[1722464592035,0.00091301,64840.0,64839.0,3.6398944]
[1722464592310,0.00191301,64840.0,64839.0,3.58569063]
[1722464592621,0.00091301,64840.0,64839.0,3.57669063]
[1722464593026,0.00091301,64840.0,64839.0,3.59069063]
[1722464593027,0.00191301,64840.0,64839.0,3.59069063]
[1722464593238,0.00191301,64840.0,64839.0,3.59669063]
[1722464593454,0.00091301,64840.0,64839.0,3.57669063]
[1722464593750,0.00091301,64840.0,64839.0,3.59069063]
[1722464593946,0.00091301,64840.0,64839.0,3.57669063]
[1722464594150,0.00091301,64840.0,64839.0,2.07669063]
[1722464594576,0.00091301,64840.0,64839.0,3.57669063]
[1722464594775,0.00091301,64840.0,64839.0,3.59069063]
[1722464595502,0.02509437,64840.0,64839.0,3.60469063]
[1722464595913,0.00091301,64840.0,64839.0,3.59069063]
[1722464596288,0.00091301,64840.0,64839.0,3.60469063]
[1722464596494,0.00091301,64840.0,64839.0,3.59069063]
[1722464597215,0.00091301,64840.0,64839.0,3.60469063]
[1722464598900,0.02509428,64840.0,64839.0,3.60469063]
[1722464599958,0.02509428,64840.0,64839.0,4.0412511]
[1722464600280,0.00052346,64863.0,64839.0,2.5272511]
[1722464600485,0.00052346,64863.0,64847.0,1.70396791]
[1722464600691,0.00052346,64863.0,64847.0,2.27728627]
[1722464600915,0.00052346,64863.0,64847.0,3.80028627]
[1722464601124,0.00052346,64863.0,64847.0,3.92836628]
[1722464601550,0.00052346,64863.0,64847.0,3.61994828]
[1722464601765,0.0638,64858.0,64847.0,1.48361484]
[1722464601967,0.00052346,64857.0,64847.0,1.40965027]
[1722464602172,0.15470846,64857.0,64847.0,1.30965027]
[1722464602379,0.0832,64855.0,64847.0,1.30965027]
[1722464602554,0.00052346,64854.0,64847.0,1.30965027]
[1722464603144,0.00052346,64854.0,64847.0,1.32365027]
[1722464603337,0.02509468,64848.0,64847.0,1.30965027]
[1722464603739,0.02509468,64848.0,64847.0,1.33765027]
[1722464603941,0.02509468,64848.0,64847.0,1.32365027]
[1722464604262,0.02509468,64848.0,64847.0,1.33765027]
[1722464604458,0.00091301,64848.0,64847.0,1.32365027]
[1722464605269,0.00091301,64848.0,64847.0,1.33365027]
[1722464605650,0.00091301,64848.0,64847.0,1.31830163]
[1722464605945,0.00091301,64848.0,64847.0,1.33430163]
[1722464606176,0.00091301,64848.0,64847.0,1.35430163]
[1722464606437,0.00091301,64848.0,64847.0,1.47270504]
[1722464606644,0.00091301,64848.0,64847.0,1.70080172]
[1722464606761,0.00091301,64848.0,64847.0,2.02321569]
[1722464607149,0.00091301,64848.0,64847.0,3.81763369]
[1722464607337,0.00091301,64848.0,64847.0,3.83163369]
[1722464607493,0.00091301,64848.0,64847.0,3.81763369]
[1722464607494,0.02509068,64848.0,64847.0,3.81763369]
[1722464607694,0.00091301,64848.0,64847.0,2.10733469]
[1722464608567,0.00091301,64848.0,64847.0,2.13533469]
[1722464608911,0.00091301,64848.0,64847.0,2.17538017]
[1722464609120,0.00091301,64848.0,64847.0,2.18938017]
[1722464609703,0.00091301,64848.0,64847.0,0.56128752]
[1722464609906,0.00091301,64848.0,64847.0,0.6353248]
[1722464611168,0.02509056,64848.0,64847.0,0.6353248]
[1722464611369,0.00091301,64848.0,64847.0,0.6353248]
[1722464611525,0.00091301,64848.0,64847.0,0.6453248]
[1722464612137,0.00091301,64848.0,64847.0,0.5453248]
[1722464612342,0.00091301,64848.0,64847.0,0.5433248]
[1722464612996,0.00091301,64848.0,64847.0,0.41524204]
[1722464613229,0.00091301,64848.0,64847.0,0.54534253]
[1722464614737,0.02509139,64848.0,64847.0,0.54534253]
[1722464614937,0.02509139,64848.0,64847.0,0.53934253]
[1722464615546,0.00091301,64848.0,64847.0,0.53934253]
[1722464616707,0.00091301,64848.0,64847.0,0.48005562]
[1722464617913,0.00091301,64848.0,64847.0,0.53935562]
[1722464618530,0.02509225,64848.0,64847.0,0.53935562]
[1722464619478,0.02509225,64848.0,64847.0,0.32995513]
[1722464619730,0.02509225,64848.0,64847.0,0.47805443]
[1722464619969,0.00091301,64848.0,64847.0,0.35195513]
[1722464620163,0.00091301,64848.0,64847.0,0.48005534]
[1722464620859,0.00091301,64848.0,64847.0,1.98005534]
[1722464622533,0.00091301,64848.0,64847.0,1.95805534]
[1722464622893,0.00091301,64848.0,64847.0,1.97805546]
[1722464623180,0.02509279,64848.0,64847.0,1.97805546]
[1722464623609,0.00091301,64848.0,64847.0,1.98005546]
[1722464625447,0.07951301,64848.0,64847.0,1.92505546]
[1722464625698,0.14211301,64848.0,64847.0,0.42505546]
[1722464625900,0.14211301,64848.0,64847.0,0.29695513]
[1722464626149,0.14211301,64848.0,64847.0,0.42506369]
[1722464626517,0.14211301,64848.0,64847.0,0.41106369]
[1722464626921,0.16629466,64848.0,64847.0,0.41106369]
[1722464627124,0.14211301,64848.0,64847.0,0.41106369]
[1722464627361,0.14211301,64848.0,64847.0,0.39706369]
[1722464627534,0.14211301,64848.0,64847.0,0.43506369]
[1722464627708,0.14211301,64848.0,64847.0,0.42306369]
[1722464627909,0.14211301,64848.0,64847.0,0.41106369]
[1722464628109,0.14211301,64848.0,64847.0,0.42406369]
[1722464628347,0.14211301,64848.0,64847.0,0.41106369]
[1722464628497,0.06351301,64848.0,64847.0,0.41106369]
[1722464628711,0.06351301,64848.0,64847.0,0.43506369]
[1722464628917,0.00091301,64848.0,64847.0,0.43506369]
[1722464629116,0.00091301,64848.0,64847.0,0.42106382]
[1722464629332,0.00091301,64848.0,64847.0,0.41106382]
[1722464629536,0.00091301,64848.0,64847.0,0.30695513]
[1722464629761,0.00091301,64848.0,64847.0,0.43506387]
[1722464630085,0.0250941,64848.0,64847.0,0.40706387]
[1722464630281,0.02418109,64848.0,64847.0,0.57806387]
[1722464630503,0.0613,64859.0,64854.0,0.01]
[1722464630620,0.0613,64859.0,64857.0,0.07476412]
[1722464630826,0.0613,64859.0,64858.0,0.12810874]
[1722464631500,0.0613,64859.0,64858.0,0.12809104]
[1722464632416,0.0613,64859.0,64858.0,0.13117348]
[1722464632632,0.0613,64864.0,64858.0,0.31064201]
[1722464632829,0.00052346,64863.0,64859.0,0.27764201]
[1722464633001,0.00052346,64863.0,64860.0,0.12809029]
[1722464633200,0.00052346,64863.0,64861.0,0.27764201]
[1722464633403,0.00052346,64863.0,64861.0,0.16490036]
[1722464634100,0.0613,64864.0,64861.0,0.16490036]
[1722464634431,0.00052346,64863.0,64861.0,0.16490036]
[1722464635446,0.00052346,64863.0,64861.0,0.17090036]
[1722464636114,0.0613,64864.0,64861.0,0.17890036]
[1722464636311,0.00052346,64863.0,64861.0,0.17890036]
[1722464636882,0.00052346,64863.0,64861.0,0.02934864]
[1722464637079,0.0641,64862.0,64861.0,0.02134864]
[1722464637628,0.0641,64862.0,64861.0,0.02834864]
[1722464638007,0.0641,64862.0,64861.0,0.49087464]
[1722464638167,0.0641,64862.0,64861.0,0.48487464]
[1722464638372,0.0641,64862.0,64861.0,0.79322564]
[1722464638581,0.0641,64862.0,64861.0,0.80022564]
[1722464639040,0.0641,64862.0,64861.0,0.49187464]
[1722464639482,0.0641,64862.0,64861.0,0.48487464]
[1722464639683,0.0641,64862.0,64861.0,0.49387464]
[1722464639859,0.45016946,64862.0,64861.0,0.03134864]
[1722464640091,0.603819,64862.0,64861.0,0.03134864]
[1722464640244,0.16547886,64862.0,64861.0,0.03134864]
[1722464640458,0.603819,64862.0,64861.0,0.03134864]
[1722464640658,0.60473201,64862.0,64861.0,0.03134864]
[1722464640856,0.62886519,64862.0,64861.0,0.03134864]
[1722464641032,0.93721119,64862.0,64861.0,0.03134864]
[1722464641244,1.24555719,64862.0,64861.0,0.03434864]
[1722464641474,0.29600763,64862.0,64861.0,0.03434864]
[1722464641686,0.29599945,64862.0,64861.0,0.03434864]
[1722464641905,0.2355113,64862.0,64861.0,0.02534864]
[1722464642094,0.16634619,64862.0,64861.0,0.02534864]
[1722464642455,0.16686965,64862.0,64861.0,0.01]
[1722464642874,0.16634619,64862.0,64861.0,0.01]
[1722464643114,0.2355113,64862.0,64861.0,0.01]
[1722464643293,0.16634619,64862.0,64861.0,0.01]
[1722464643496,0.16786965,64862.0,64861.0,0.01]
[1722464643737,0.23603476,64862.0,64861.0,0.01]
[1722464643943,0.16734619,64862.0,64861.0,0.01]
[1722464644140,0.23851675,64862.0,64861.0,0.01]
[1722464644341,0.16734619,64862.0,64861.0,0.01]
[1722464644722,0.16786965,64862.0,64861.0,0.01]
[1722464645108,0.23704021,64862.0,64861.0,0.01]
[1722464645317,0.23751675,64862.0,64861.0,0.01]
[1722464645850,0.29729389,64862.0,64861.0,0.01]
[1722464646051,0.23754217,64862.0,64861.0,0.01]
[1722464646394,0.23753729,64862.0,64861.0,0.01]
[1722464646597,0.23806075,64862.0,64861.0,0.01]
[1722464646797,0.16886965,64862.0,64861.0,0.01]
[1722464647201,0.23805948,64862.0,64861.0,0.01]
[1722464647402,0.23753602,64862.0,64861.0,0.01]
[1722464647606,0.16834619,64862.0,64861.0,0.01]
[1722464647807,0.23753661,64862.0,64861.0,0.01]
[1722464648887,0.46909851,64862.0,64861.0,0.01]
[1722464649069,0.37796141,64862.0,64861.0,0.01]
[1722464649273,0.23666141,64862.0,64847.0,0.01083]
[1722464649476,0.142,64849.0,64847.0,0.02617864]
[1722464649701,0.02413318,64848.0,64847.0,0.02617864]
[1722464649906,0.17313318,64848.0,64847.0,0.02617864]
[1722464650198,0.21816396,64848.0,64847.0,0.02617864]
[1722464650393,0.17313318,64848.0,64847.0,0.02617864]
[1722464651154,0.149,64848.0,64847.0,0.02617864]
[1722464651556,0.15,64848.0,64847.0,0.02617864]
[1722464651759,0.149,64848.0,64847.0,0.02617864]
[1722464652381,0.15,64848.0,64847.0,0.02617864]
[1722464652580,0.17418465,64848.0,64847.0,0.02617864]
[1722464652804,0.17318465,64848.0,64847.0,0.02617864]
[1722464653214,0.02418465,64848.0,64847.0,0.02617864]
[1722464653541,0.008,64848.0,64847.0,0.03026227]
[1722464654254,0.0657,64854.0,64847.0,0.02926227]
[1722464654447,0.00091301,64862.0,64847.0,0.24806227]
[1722464654448,0.002,64848.0,64847.0,0.24806227]
[1722464654668,0.0657,64858.0,64847.0,0.28106227]
[1722464654826,0.0657,64858.0,64850.0,0.01]
[1722464655028,0.0657,64858.0,64851.0,0.00308338]
[1722464656654,0.0657,64858.0,64851.0,0.00708338]
[1722464657132,0.0657,64858.0,64851.0,0.00908338]
[1722464658306,0.02417994,64857.0,64851.0,0.00908338]
[1722464658660,0.0657,64858.0,64851.0,0.00908338]
[1722464659165,0.00091301,64862.0,64852.0,0.16155172]
[1722464659477,0.00052346,64861.0,64853.0,0.13118499]
[1722464659791,0.00052346,64861.0,64854.0,0.14955172]
[1722464659996,0.00052346,64861.0,64855.0,0.00308318]
[1722464660615,0.02417952,64860.0,64855.0,0.00308318]
[1722464661858,0.02417952,64860.0,64854.0,0.16590036]
[1722464662081,0.00091301,64862.0,64855.0,0.00308321]
[1722464662684,0.00091301,64862.0,64855.0,0.07438321]
[1722464662859,0.00091301,64862.0,64861.0,0.03]
[1722464663064,0.00091301,64862.0,64861.0,0.35105603]
[1722464663268,0.00091301,64862.0,64861.0,0.45105603]
[1722464664405,0.00091301,64862.0,64861.0,0.45305603]
[1722464665151,0.00091301,64862.0,64861.0,0.62235603]
[1722464665463,0.02508821,64862.0,64861.0,0.62235603]
[1722464665672,0.02508821,64862.0,64861.0,0.61927334]
[1722464666047,0.02508821,64862.0,64861.0,0.49120036]
[1722464666306,0.02508821,64862.0,64861.0,0.61925935]
[1722464666538,0.00091301,64862.0,64861.0,0.61925935]
[1722464666751,0.00091301,64862.0,64861.0,1.99120036]
[1722464666956,0.00091301,64862.0,64861.0,2.11926345]
[1722464668165,0.00091301,64862.0,64861.0,2.10391481]
[1722464668542,0.00091301,64862.0,64861.0,2.10391643]
[1722464669280,0.00091301,64862.0,64861.0,1.97585172]
[1722464669481,0.00091301,64862.0,64861.0,2.10391558]
[1722464669622,0.00091301,64862.0,64861.0,0.60391558]
[1722464669830,0.02508671,64862.0,64861.0,0.60391558]
[1722464670029,0.00091301,64862.0,64861.0,2.10391558]
[1722464671639,0.00091301,64862.0,64861.0,3.79984558]
[1722464672642,0.00091301,64862.0,64861.0,3.79984237]